bitfinex/quotes_SOLUSD_20260305
["timestamp","ask_amount","ask_price","bid_price","bid_amount"]
[1772693628066,0.54418693,90.95,90.868,1.30020265]
[1772693628254,0.54418693,90.95,90.868,1.58452579]
[1772693628754,0.54418693,90.95,90.87,1.23286976]
[1772693628949,0.54418693,90.95,90.87,1.5171929]
[1772693629162,0.54418693,90.95,90.872,1.5171929]
[1772693629370,0.54549677,90.948,90.877,1.5171929]
[1772693631543,0.54636981,90.929,90.879,1.23286976]
[1772693632964,0.54681252,90.919,90.879,1.23286976]
[1772693633350,0.54725257,90.909,90.871,1.23286976]
[1772693633667,0.54725257,90.907,90.872,11.00448983]
[1772693634666,0.54768722,90.899,90.867,11.00501952]
[1772693635051,0.54768722,90.899,90.868,1.23286976]
[1772693635253,0.54809915,90.907,90.868,1.23286976]
[1772693635458,11.54757389,90.914,90.87,1.23286976]
[1772693636164,0.54850346,90.913,90.87,1.23286976]
[1772693636869,11.54815147,90.912,90.872,1.23286976]
[1772693637065,0.54890557,90.911,90.872,1.23286976]
[1772693637773,0.54890557,90.909,90.872,1.23286976]
[1772693638255,0.54890557,90.909,90.865,1.23286976]
[1772693639070,0.54968907,90.907,90.866,11.00521647]
[1772693639768,0.54968907,90.907,90.867,1.23286976]
[1772693640969,11.00037401,90.906,90.869,1.23286976]
[1772693642356,0.55401209,90.905,90.859,11.00606434]
[1772693642569,0.55401209,90.905,90.86,1.23286976]
[1772693643151,0.55434796,90.903,90.861,11.00582207]
[1772693643478,0.55434796,90.903,90.862,1.23286976]
[1772693645170,0.55501022,90.901,90.863,11.00557982]
[1772693645372,0.55501022,90.901,90.864,1.23286976]
[1772693647176,0.55413444,90.899,90.866,1.23286976]
[1772693647468,11.00110011,90.9,90.866,1.23286976]
[1772693647674,0.55413444,90.899,90.866,1.23286976]
[1772693649180,0.55482671,90.897,90.867,11.00509535]
[1772693649565,0.55482671,90.897,90.868,1.23286976]
[1772693651189,0.55549756,90.895,90.862,11.00569638]
[1772693651863,0.55549756,90.895,90.836,3.69383402]
[1772693651864,1.33725025,90.889,90.832,11.00933591]
[1772693652063,1.33725025,90.889,90.835,3.69383402]
[1772693653167,1.33725025,90.887,90.836,38.5309789]
[1772693653886,1.33725025,90.887,90.837,1.23286976]
[1772693656092,1.33725025,90.885,90.839,1.23286976]
[1772693658619,1.33725025,90.879,90.833,1.23286976]
[1772693659377,38.51062892,90.884,90.826,1.26038886]
[1772693659378,1.30011803,90.869,90.826,1.26038886]
[1772693660288,1.30011803,90.869,90.826,12.27036701]
[1772693660673,1.30011803,90.867,90.826,12.27036701]
[1772693660874,1.30011803,90.867,90.833,1.26038886]
[1772693662095,1.30011803,90.867,90.825,1.26038886]
[1772693662891,4.18305414,90.87,90.825,1.26038886]
[1772693662892,1.30011803,90.865,90.825,1.26038886]
[1772693663082,1.30011803,90.859,90.819,11.01082178]
[1772693663288,1.30011803,90.859,90.817,1.26038886]
[1772693664396,1.30011803,90.859,90.824,1.26038886]
[1772693666305,1.30011803,90.857,90.832,1.26038886]
[1772693666685,1.30011803,90.857,90.825,1.26038886]
[1772693667696,1.30011803,90.857,90.832,1.25602633]
[1772693668204,55.01518419,90.884,90.833,1.25602633]
[1772693668412,4.18305414,90.87,90.833,1.25602633]
[1772693669200,4.18305414,90.88,90.833,1.25602633]
[1772693669701,4.18305414,90.88,90.834,1.25602633]
[1772693670203,0.51885457,90.879,90.834,1.25602633]
[1772693670606,11.00376328,90.878,90.836,1.25602633]
[1772693672790,0.52263422,90.883,90.838,1.25602633]
[1772693674410,4.70940544,90.88,90.84,1.25602633]
[1772693674603,0.5263513,90.879,90.84,1.25602633]
[1772693675595,0.52820112,90.869,90.84,1.25602633]
[1772693676706,0.53000885,90.867,90.833,1.25602633]
[1772693676911,0.5301555,90.859,90.827,11.00993747]
[1772693677089,0.5301555,90.859,90.826,1.25602633]
[1772693677703,4.18305414,90.85,90.815,1.25602633]
[1772693678092,4.18305414,90.84,90.815,1.25602633]
[1772693678504,4.18305414,90.85,90.815,1.25602633]
[1772693678691,38.52546532,90.849,90.815,1.25602633]
[1772693678893,11.0072758,90.849,90.816,1.36263603]
[1772693679604,38.52546532,90.849,90.816,1.36263603]
[1772693680909,0.02179477,90.848,90.816,1.36263603]
[1772693683702,4.18305414,90.84,90.816,1.36263603]
[1772693685107,4.21149343,90.84,90.816,1.36263603]
[1772693685314,38.52546532,90.849,90.816,1.36263603]
[1772693685315,0.02843929,90.839,90.816,1.36263603]
[1772693686099,0.03004479,90.848,90.816,1.36263603]
[1772693687516,0.03004479,90.848,90.817,1.36263603]
[1772693689325,0.03004479,90.848,90.819,1.36263603]
[1772693689824,11.0072758,90.849,90.819,1.36263603]
[1772693690121,0.0362832,90.858,90.821,1.36263603]
[1772693691019,11.00606434,90.859,90.821,1.36263603]
[1772693692144,4.18305414,90.87,90.821,1.36263603]
[1772693692145,0.04079046,90.858,90.821,1.36263603]
[1772693692314,0.04079046,90.858,90.823,1.36263603]
[1772693692816,0.04079046,90.868,90.823,1.36263603]
[1772693694304,0.04079046,90.868,90.825,1.36263603]
[1772693695720,0.04079046,90.868,90.827,1.36263603]
[1772693696311,55.01431051,90.886,90.817,1.36263603]
[1772693696312,4.18305414,90.85,90.817,1.36263603]
[1772693696528,0.04819578,90.849,90.817,1.36263603]
[1772693696731,0.04819578,90.839,90.811,1.36263603]
[1772693696930,0.04819578,90.839,90.81,1.56263603]
[1772693697312,0.04819578,90.839,90.81,0.2]
[1772693697911,11.00848754,90.839,90.811,1.36263603]
[1772693700335,27.51947476,90.845,90.812,1.36263603]
[1772693700530,11.00521647,90.866,90.812,1.36263603]
[1772693701136,11.00521647,90.866,90.815,1.36263603]
[1772693701630,11.00521647,90.866,90.815,1.64695917]
[1772693701830,27.50880626,90.88,90.817,1.48454761]
[1772693702022,11.0036422,90.879,90.817,1.48454761]
[1772693702209,39.85598756,90.879,90.819,1.62670918]
[1772693702415,1.34323985,90.878,90.819,1.62670918]
[1772693703545,1.34323985,90.876,90.821,1.62670918]
[1772693704442,1.34323985,90.869,90.821,1.34238604]
[1772693705651,4.18939297,90.87,90.823,1.34238604]
[1772693705652,1.34323985,90.867,90.823,1.34238604]
[1772693707122,1.34323985,90.865,90.825,1.34238604]
[1772693709336,1.34323985,90.859,90.825,1.34238604]
[1772693709520,1.34323985,90.897,90.827,1.34238604]
[1772693709720,1.34323985,90.879,90.827,1.34238604]
[1772693712438,1.34323985,90.877,90.829,1.34238604]
[1772693715445,1.34323985,90.869,90.831,1.34238604]
[1772693717545,11.00497424,90.868,90.833,1.34238604]
[1772693717930,27.50708963,90.886,90.833,1.34238604]
[1772693718228,12.34615562,90.885,90.833,1.34238604]
[1772693718434,1.34323985,90.884,90.833,1.34238604]
[1772693720046,1.32802291,90.879,90.835,1.27873634]
[1772693721442,38.51105266,90.883,90.835,1.27873634]
[1772693721632,1.32802291,90.882,90.835,1.27873634]
[1772693722155,4.18939297,90.87,90.836,11.00885111]
[1772693722334,1.32802291,90.869,90.836,12.28758745]
[1772693722533,1.32802291,90.869,90.836,1.27873634]
[1772693723254,1.32802291,90.869,90.827,1.27873634]
[1772693724857,1.32802291,90.867,90.829,1.27873634]
[1772693728239,1.42173985,90.865,90.831,1.4228654]
[1772693730134,1.42173985,90.863,90.831,1.4228654]
[1772693732232,1.42173985,90.861,90.831,1.4228654]
[1772693734151,1.42173985,90.859,90.831,1.4228654]
[1772693737157,12.42792532,90.858,90.831,1.4228654]
[1772693737653,1.42173985,90.857,90.831,1.4228654]
[1772693737953,12.42792532,90.858,90.831,1.4228654]
[1772693738456,1.42173985,90.857,90.831,1.4228654]
[1772693738857,11.00570461,90.862,90.832,11.00933591]
[1772693739060,11.00570461,90.862,90.833,1.4228654]
[1772693739853,11.00461093,90.871,90.835,1.4228654]
[1772693742058,55.00678562,90.898,90.837,1.4228654]
[1772693742059,1.42173985,90.876,90.837,1.4228654]
[1772693744268,4.18939297,90.88,90.837,1.4228654]
[1772693744269,1.42173985,90.874,90.837,1.4228654]
[1772693744851,1.42173985,90.874,90.838,1.4228654]
[1772693746254,11.00436873,90.873,90.84,1.4228654]
[1772693747544,11.00436873,90.873,90.842,1.4228654]
[1772693748054,1.42173985,90.872,90.842,1.4228654]
[1772693749668,11.00436873,90.873,90.844,1.36041983]
[1772693749851,11.00340005,90.881,90.844,1.36041983]
[1772693750262,1.35824799,90.88,90.844,1.36041983]
[1772693751354,1.35824799,90.913,90.844,1.36041983]
[1772693751548,1.35824799,90.913,90.844,1.64474297]
[1772693751756,1.35824799,90.905,90.846,1.64474297]
[1772693754778,11.00061603,90.904,90.848,1.5025814]
[1772693754975,1.35824799,90.903,90.848,1.5025814]
[1772693755277,10.99916655,90.916,90.848,1.5025814]
[1772693755478,10.99916655,90.916,90.847,93.56390413]
[1772693755479,1.35824799,90.915,90.851,1.5025814]
[1772693757464,1.35824799,90.913,90.859,1.36041983]
[1772693757650,1.35824799,90.913,90.861,1.36041983]
[1772693757849,1.35824799,90.913,90.861,1.5025814]
[1772693758462,1.35824799,90.913,90.865,3.69383402]
[1772693758662,1.35824799,90.913,90.866,1.64474297]
[1772693759782,10.99831725,90.923,90.866,1.64474297]
[1772693760175,1.35824799,90.922,90.866,1.64474297]
[1772693760579,1.35824799,90.92,90.868,1.64474297]
[1772693761264,4.18045575,90.91,90.862,11.00560358]
[1772693761463,1.35824799,90.909,90.862,11.00560358]
[1772693761684,1.35824799,90.909,90.862,12.36602341]
[1772693761874,1.35824799,90.909,90.863,1.36041983]
[1772693763180,1.35824799,90.907,90.865,1.36041983]
[1772693765272,11.00037401,90.906,90.866,11.00521647]
[1772693765472,1.35824799,90.905,90.867,1.36041983]
[1772693769690,1.35824799,90.903,90.869,1.36041983]
[1772693770776,1.35824799,90.903,90.864,11.0054587]
[1772693770978,1.35824799,90.903,90.865,1.36041983]
[1772693772877,12.35842017,90.908,90.867,1.36041983]
[1772693773082,1.35824799,90.907,90.867,1.36041983]
[1772693774975,54.98250435,90.939,90.869,1.36041983]
[1772693774976,1.35824799,90.905,90.869,1.36041983]
[1772693775782,1.35824799,90.911,90.869,1.36041983]
[1772693775977,1.35824799,90.909,90.869,1.36041983]
[1772693778095,11.000132,90.908,90.87,11.00473203]
[1772693778301,1.35824799,90.907,90.871,1.64474297]
[1772693779305,1.35824799,90.907,90.871,1.36041983]
[1772693780296,11.000132,90.908,90.871,1.36041983]
[1772693780297,1.40745035,90.905,90.871,1.36041983]
[1772693780596,1.40745035,90.905,90.872,11.00448983]
[1772693780794,1.40745035,90.905,90.873,1.35771097]
[1772693781778,10.99987273,90.911,90.873,1.35771097]
[1772693781984,1.40745035,90.91,90.873,1.35771097]
[1772693782205,1.40745035,90.91,90.875,1.35771097]
[1772693783195,1.40745035,90.909,90.875,1.35771097]
[1772693784200,1.40745035,90.907,90.877,1.35771097]
[1772693784583,1.40745035,90.907,90.876,11.00400545]
[1772693784900,1.40745035,90.907,90.863,1.35771097]
[1772693787804,1.40347557,90.905,90.865,1.41875416]
[1772693790304,1.40347557,90.903,90.867,1.41875416]
[1772693792707,4.18045575,90.89,90.845,1.41875416]
[1772693792913,1.40347557,90.889,90.845,1.41875416]
[1772693795187,1.40347557,90.887,90.847,1.41875416]
[1772693797695,1.40347557,90.885,90.849,1.41875416]
[1772693798014,1.40347557,90.885,90.848,11.00739697]
[1772693798809,38.51062892,90.884,90.848,12.42615113]
[1772693799013,1.40347557,90.883,90.848,12.42615113]
[1772693799812,1.40347557,90.883,90.849,1.41875416]
[1772693801016,1.40347557,90.889,90.85,1.41875416]
[1772693802944,1.40347557,90.887,90.852,1.41875416]
[1772693804125,1.40347557,90.879,90.845,11.00776047]
[1772693804355,1.40347557,90.879,90.846,1.41875416]
[1772693805529,1.40347557,90.885,90.847,38.52631346]
[1772693805729,1.40347557,90.885,90.848,1.41875416]
[1772693809252,1.41911641,90.883,90.85,1.33377466]
[1772693811953,1.41911641,90.881,90.851,12.34080815]
[1772693812134,1.41911641,90.881,90.852,1.33377466]
[1772693814263,11.00352112,90.88,90.854,1.33377466]
[1772693814735,1.41911641,90.903,90.854,1.33377466]
[1772693815058,1.41911641,90.902,90.854,1.33377466]
[1772693816745,1.41911641,90.9,90.856,1.33377466]
[1772693818464,1.41911641,90.899,90.856,1.33377466]
[1772693819643,1.41911641,90.897,90.858,1.33377466]
[1772693820750,1.41911641,90.895,90.858,1.33377466]
[1772693821868,4.18391144,90.89,90.848,1.33377466]
[1772693822049,1.41911641,90.889,90.848,1.33377466]
[1772693823661,1.41911641,90.887,90.85,1.33377466]
[1772693826151,1.41911641,90.885,90.852,1.33377466]
[1772693827177,1.41911641,90.924,90.846,1.33377466]
[1772693827494,1.41911641,90.909,90.846,1.33377466]
[1772693827659,1.41911641,90.899,90.846,1.33377466]
[1772693828354,1.41911641,90.897,90.848,1.33377466]
[1772693828550,11.00134216,90.898,90.848,1.6180978]
[1772693828873,11.00087749,90.902,90.848,1.6180978]
[1772693829069,12.4199939,90.902,90.848,1.6180978]
[1772693829450,27.4982319,90.915,90.848,1.6180978]
[1772693829659,1.41911641,90.926,90.851,1.6180978]
[1772693830069,1.41911641,90.919,90.851,1.6180978]
[1772693830568,1.41911641,90.917,90.853,1.6180978]
[1772693831692,1.41911641,90.909,90.853,1.33377466]
[1772693832983,1.41911641,90.907,90.855,1.33377466]
[1772693833564,1.41911641,90.899,90.855,1.33377466]
[1772693835384,1.41911641,90.897,90.857,1.33377466]
[1772693837777,1.41911641,90.895,90.858,11.00618547]
[1772693837994,1.41911641,90.895,90.858,1.33377466]
[1772693838683,1.41911641,90.895,90.859,1.41923328]
[1772693840190,11.0018263,90.894,90.861,1.41923328]
[1772693840695,1.34432769,90.893,90.861,1.41923328]
[1772693843499,1.34432769,90.891,90.862,11.00570095]
[1772693845396,11.00231048,90.89,90.865,1.41923328]
[1772693845790,12.3447017,90.906,90.865,1.41923328]
[1772693846288,1.34432769,90.905,90.865,1.41923328]
[1772693848297,1.40737966,90.903,90.865,1.3876208]
[1772693848495,1.40737966,90.903,90.867,1.3876208]
[1772693850405,11.00085806,90.902,90.869,1.3876208]
[1772693850590,12.40823772,90.902,90.869,1.3876208]
[1772693850902,1.40737966,90.901,90.869,1.3876208]
[1772693852681,1.40737966,90.906,90.871,1.3876208]
[1772693854106,1.40737966,90.904,90.873,1.3876208]
[1772693857409,1.40737966,90.902,90.873,1.3876208]
[1772693857607,1.40737966,90.902,90.875,1.3876208]
[1772693860305,1.40737966,90.9,90.875,1.3876208]
[1772693860503,1.40737966,90.9,90.874,11.00424763]
[1772693860504,1.40737966,90.9,90.87,11.00468368]
[1772693860701,1.40737966,90.899,90.861,1.3876208]
[1772693862011,1.40737966,90.897,90.863,1.3876208]
[1772693862389,1.40737966,90.889,90.862,11.00570095]
[1772693863710,1.40737966,90.889,90.858,1.3876208]
[1772693864027,1.40737966,90.887,90.858,1.3876208]
[1772693865116,11.00255259,90.888,90.86,1.3876208]
[1772693865298,54.99049277,90.925,90.86,1.3876208]
[1772693865299,1.40737966,90.906,90.86,1.3876208]
[1772693869197,1.34014323,90.904,90.862,1.36060247]
[1772693870304,1.34014323,90.908,90.862,1.36060247]
[1772693873126,1.34014323,90.906,90.864,1.36060247]
[1772693874498,11.000253,90.907,90.863,11.00557982]
[1772693874499,1.34014323,90.899,90.863,11.00557982]
[1772693874700,1.34014323,90.889,90.854,1.36060247]
[1772693875216,4.18391144,90.89,90.854,1.36060247]
[1772693875217,1.34014323,90.887,90.855,1.36060247]
[1772693878019,1.34014323,90.885,90.857,1.36060247]
[1772693880629,1.34014323,90.885,90.859,1.36060247]
[1772693881204,1.34014323,90.883,90.859,1.36060247]
[1772693881822,1.34014323,90.883,90.847,1.36060247]
[1772693884225,1.34014323,90.881,90.849,1.36060247]
[1772693887331,1.34014323,90.879,90.851,1.36060247]
[1772693888608,1.34014323,90.898,90.851,1.36060247]
[1772693888811,1.34014323,90.897,90.851,1.36060247]
[1772693889027,4.82477569,90.944,90.851,1.36060247]
[1772693889028,1.34014323,90.915,90.854,1.36060247]
[1772693889215,1e-08,90.915,90.858,3.69383402]
[1772693889419,4.18400028,90.95,90.859,1.64492561]
[1772693890013,4.18400028,90.94,90.859,1.64492561]
[1772693890427,38.48099038,90.954,90.859,1.64492561]
[1772693890733,4.18400028,90.94,90.859,1.64492561]
[1772693890917,54.97284341,90.954,90.863,3.69383402]
[1772693891123,4.18400028,90.95,90.864,1.64492561]
[1772693891431,1.34014323,90.949,90.864,1.64492561]
[1772693891730,1.34014323,90.949,90.869,1.36060247]
[1772693891931,1.34014323,90.949,90.87,1.36060247]
[1772693892233,1.34014323,90.949,90.87,1.64492561]
[1772693892809,1.34014323,90.949,90.872,1.36060247]
[1772693893014,1.34014323,90.947,90.878,1.64492561]
[1772693893232,1.34014323,90.947,90.88,1.64492561]
[1772693893530,1.34014323,90.947,90.882,1.36060247]
[1772693893713,1.34014323,90.939,90.884,1.36060247]
[1772693893910,1.34014323,90.939,90.874,93.53610491]
[1772693893911,1.34014323,90.929,90.885,0.94018309]
[1772693894135,1.34014323,90.919,90.885,0.94018309]
[1772693895411,1.34014323,90.917,90.885,0.94018309]
[1772693897116,1.34014323,90.909,90.871,1.36060247]
[1772693897536,0.52006224,90.907,90.871,1.36060247]
[1772693898530,0.51973433,90.899,90.863,11.00550706]
[1772693898720,0.51939382,90.88,90.854,12.2655087]
[1772693898920,0.51753468,90.889,90.855,1.25885952]
[1772693900539,0.51721919,90.897,90.857,1.25885952]
[1772693901143,0.51721919,90.897,90.858,1.25885952]
[1772693902034,0.51506329,90.889,90.858,1.25885952]
[1772693905740,11.00255259,90.888,90.859,11.00606434]
[1772693905933,11.00255259,90.888,90.86,1.25885952]
[1772693908226,11.00255259,90.888,90.862,1.28630095]
[1772693910330,27.5033554,90.898,90.864,1.28630095]
[1772693910530,0.51271371,90.897,90.864,1.28630095]
[1772693911636,54.98744966,90.93,90.864,1.28630095]
[1772693911637,0.51245108,90.921,90.864,1.28630095]
[1772693911838,0.51245108,90.919,90.864,1.28630095]
[1772693912641,0.51219994,90.909,90.866,1.28630095]
[1772693915355,0.51148134,90.907,90.868,1.28630095]
[1772693917949,0.51100841,90.905,90.87,1.28630095]
[1772693920158,0.51028684,90.903,90.872,1.28630095]
[1772693923259,0.50776021,90.901,90.86,1.28630095]
[1772693923645,0.50776021,90.889,90.857,0.84600134]
[1772693923853,0.50776021,90.889,90.858,1.28630095]
[1772693925154,11.00255259,90.888,90.858,1.28630095]
[1772693925467,0.5055063,90.887,90.858,1.28630095]
[1772693926166,0.5055063,90.887,90.857,0.84600134]
[1772693926167,0.50440327,90.879,90.857,0.84600134]
[1772693928667,11.00376328,90.878,90.857,2.09111484]
[1772693928968,10.50376328,90.878,90.857,2.09111484]
[1772693929356,10.50376328,90.878,90.858,1.2451135]
[1772693931665,0.49665237,90.869,90.827,1.2451135]
[1772693931851,0.49665237,90.859,90.827,1.2451135]
[1772693932757,0.49417569,90.857,90.827,1.2451135]
[1772693933969,0.49223833,90.849,90.827,1.2451135]
[1772693934266,0.49223833,90.849,90.821,11.01066607]
[1772693934455,0.49223833,90.849,90.821,12.25577957]
[1772693934646,0.49223833,90.849,90.822,1.2451135]
[1772693935162,11.49868376,90.848,90.824,1.2451135]
[1772693935546,11.00739697,90.848,90.824,1.2451135]
[1772693937367,0.48941224,90.859,90.826,1.2451135]
[1772693938570,0.48702239,90.876,90.827,1.2451135]
[1772693938753,0.48702239,90.889,90.827,1.2451135]
[1772693939149,4.18400028,90.88,90.827,1.2451135]
[1772693939361,0.48612624,90.879,90.827,1.2451135]
[1772693939770,0.48612624,90.877,90.829,1.2451135]
[1772693940474,0.48612624,90.877,90.831,3.69383402]
[1772693940653,0.48524014,90.887,90.832,1.2451135]
[1772693941455,0.48438533,90.879,90.832,1.2451135]
[1772693942480,0.483522,90.877,90.834,1.2451135]
[1772693942670,0.483522,90.869,90.834,1.2451135]
[1772693942866,0.483522,90.859,90.834,1.2451135]
[1772693943469,0.48266731,90.866,90.834,1.2451135]
[1772693943854,0.48266731,90.869,90.836,1.2451135]
[1772693946481,0.48266731,90.869,90.812,3.69383402]
[1772693946482,0.48169212,90.868,90.838,1.2451135]
[1772693948778,0.47855728,90.866,90.832,12.25436217]
[1772693949081,0.47855728,90.866,90.833,1.2451135]
[1772693951083,11.00533758,90.865,90.834,11.00909351]
[1772693951395,11.48156782,90.865,90.835,1.2451135]
[1772693951989,11.00533758,90.865,90.835,1.2451135]
[1772693953464,11.48084491,90.871,90.837,1.2451135]
[1772693953664,0.47623398,90.885,90.837,1.2451135]
[1772693953864,11.00331612,90.882,90.837,1.2451135]
[1772693954065,0.47545334,90.881,90.837,1.2451135]
[1772693956073,11.00274595,90.887,90.839,1.2451135]
[1772693956388,11.0015544,90.897,90.842,1.2451135]
[1772693958069,11.00085806,90.902,90.847,1.52943664]
[1772693958977,54.99179844,90.923,90.847,1.52943664]
[1772693958978,0.47101498,90.929,90.847,1.52943664]
[1772693959178,0.47101498,90.928,90.847,1.52943664]
[1772693959799,0.47101498,90.919,90.847,1.52943664]
[1772693962399,0.46890722,90.917,90.852,1.25241494]
[1772693964398,54.97899275,90.944,90.857,1.25241494]
[1772693964399,0.46753502,90.899,90.857,1.25241494]
[1772693964597,38.500462,90.908,90.853,11.00679119]
[1772693964598,0.46753502,90.889,90.853,11.00679119]
[1772693964903,0.46688849,90.879,90.853,11.00679119]
[1772693965478,0.46688849,90.879,90.831,11.00945712]
[1772693966999,4.18549308,90.88,90.832,27.52327364]
[1772693967000,1.21448483,90.877,90.832,27.52327364]
[1772693967582,1.21448483,90.877,90.833,1.2462348]
[1772693970199,1.21448483,90.875,90.835,1.2462348]
[1772693972502,1.21448483,90.875,90.837,1.2462348]
[1772693973302,1.21448483,90.881,90.837,1.2462348]
[1772693974783,1.21448483,90.878,90.839,1.2462348]
[1772693976703,1.21448483,90.878,90.838,11.00860873]
[1772693976901,1.21448483,90.878,90.833,1.2462348]
[1772693976902,1.21448483,90.867,90.834,11.00909351]
[1772693977202,1.21448483,90.867,90.834,12.25532831]
[1772693977399,1.21448483,90.867,90.835,1.2462348]
[1772693978198,1.21448483,90.865,90.836,12.25508591]
[1772693979099,1.21448483,90.865,90.837,1.2462348]
[1772693980906,31.69429589,90.88,90.826,27.52492025]
[1772693980907,1.21448483,90.863,90.838,12.25484353]
[1772693981308,1.21448483,90.863,90.839,1.2462348]
[1772693983314,12.22018578,90.862,90.841,1.2462348]
[1772693984105,1.21448483,90.861,90.835,12.25509989]
[1772693984608,1.21448483,90.861,90.83,12.25573574]
[1772693984807,1.21448483,90.861,90.831,1.2462348]
[1772693986410,4.18549308,90.87,90.815,27.52819605]
[1772693986411,1.21448483,90.859,90.833,1.2462348]
[1772693988217,11.0059432,90.86,90.833,1.2462348]
[1772693988429,1.21448483,90.903,90.835,1.2462348]
[1772693988619,1.21448483,90.899,90.835,1.2462348]
[1772693989906,1.23213842,90.889,90.835,1.2462348]
[1772693990903,11.00255259,90.888,90.836,38.5309789]
[1772693991215,11.00255259,90.888,90.837,1.30611352]
[1772693991419,11.00190743,90.894,90.837,1.59043666]
[1772693991619,11.00127995,90.899,90.837,1.59043666]
[1772693991811,11.00127995,90.899,90.841,1.30611352]
[1772693992323,1.23213842,90.921,90.843,1.59043666]
[1772693992508,1.23213842,90.921,90.847,1.59043666]
[1772693992708,1.23213842,90.921,90.848,1.59043666]
[1772693993935,1.23213842,90.925,90.853,1.30611352]
[1772693994107,1.23213842,90.925,90.853,1.59043666]
[1772693995026,1.23213842,90.919,90.853,1.30611352]
[1772693996012,1.23213842,90.917,90.858,1.30611352]
[1772693997715,1.23213842,90.917,90.842,0.28432314]
[1772693997716,1.23213842,90.879,90.843,1.30611352]
[1772693997928,11.00243153,90.889,90.844,1.30611352]
[1772693998103,11.00243153,90.889,90.846,1.30611352]
[1772693998303,38.5000385,90.909,90.846,1.30611352]
[1772693999818,0.49320202,90.908,90.846,1.30611352]
[1772694000219,0.49439083,90.906,90.848,1.30611352]
[1772694000428,0.49439083,90.906,90.848,1.59043666]
[1772694000627,11.000253,90.907,90.851,1.59043666]
[1772694001131,10.99916406,90.916,90.851,1.59043666]
[1772694001330,0.49553399,90.926,90.852,1.10069123]
[1772694001515,0.49553399,90.926,90.853,1.59043666]
[1772694002413,0.49666396,90.924,90.858,1.59043666]
[1772694003107,0.49942437,90.938,90.864,4.82477569]
[1772694003332,10.996257,90.941,90.868,1.30611352]
[1772694003626,10.996257,90.941,90.87,1.59043666]
[1772694004224,10.996257,90.941,90.872,1.30611352]
[1772694004431,10.996257,90.941,90.877,1.59043666]
[1772694004829,10.99505222,90.95,90.877,1.59043666]
[1772694005214,0.50324244,90.949,90.877,1.59043666]
[1772694006424,10.99529401,90.948,90.878,93.53198792]
[1772694006618,11.49957485,90.948,90.882,1.30611352]
[1772694007018,0.50428084,90.947,90.882,1.30611352]
[1772694007930,4.17841139,90.94,90.882,1.30611352]
[1772694008135,0.50633066,90.939,90.882,1.30611352]
[1772694008639,0.50633066,90.937,90.884,1.30611352]
[1772694009619,0.50734057,90.929,90.884,1.30611352]
[1772694009826,0.50734057,90.909,90.864,1.30611352]
[1772694010746,0.50836472,90.907,90.866,1.30611352]
[1772694013322,0.51128327,90.905,90.868,1.30611352]
[1772694014638,54.98251556,90.938,90.868,1.30611352]
[1772694014639,0.5122405,90.914,90.868,1.30611352]
[1772694014837,27.4858372,90.956,90.871,1.34583226]
[1772694015035,4.17841139,90.95,90.873,1.6301554]
[1772694015222,10.99759152,90.929,90.875,1.34583226]
[1772694015421,38.49157033,90.929,90.875,1.34583226]
[1772694015621,10.99759152,90.929,90.875,1.34583226]
[1772694016043,38.49157033,90.929,90.875,1.34583226]
[1772694016421,10.49759152,90.929,90.875,1.6301554]
[1772694017555,4.17841139,90.94,90.877,1.6301554]
[1772694018442,3.69383402,90.962,90.877,1.34583226]
[1772694018643,93.44309617,90.965,90.881,1.34583226]
[1772694018942,38.47633704,90.965,90.881,1.34583226]
[1772694019431,4.17841139,90.96,90.881,1.34583226]
[1772694019635,4.17841139,90.95,90.883,1.6301554]
[1772694020433,4.17841139,90.95,90.883,1.34583226]
[1772694020840,38.47887509,90.959,90.883,1.48799383]
[1772694021142,38.47887509,90.959,90.883,1.6301554]
[1772694022039,38.47887509,90.959,90.885,1.6301554]
[1772694022949,4.17841139,90.95,90.885,1.6301554]
[1772694023445,38.47887509,90.959,90.885,1.6301554]
[1772694025252,38.47887509,90.959,90.887,1.6301554]
[1772694027243,27.48491078,90.959,90.889,1.6301554]
[1772694027449,27.48491078,90.959,90.892,1.34583226]
[1772694028045,10.99287661,90.968,90.892,1.6301554]
[1772694028238,38.47506814,90.968,90.892,1.6301554]
[1772694029032,0.02062076,90.967,90.892,1.6301554]
[1772694029427,0.02062076,90.967,90.894,1.6301554]
[1772694031150,0.02287405,90.959,90.894,1.6301554]
[1772694031352,0.02287405,90.959,90.897,1.34583226]
[1772694031353,0.02287405,90.958,90.897,1.34583226]
[1772694032651,0.02561966,90.949,90.897,1.34583226]
[1772694033440,0.02506785,90.948,90.899,1.34583226]
[1772694035642,4.17841139,90.94,90.9,11.00110011]
[1772694035841,0.02557854,90.929,90.885,1.34583226]
[1772694036046,0.02557854,90.929,90.888,11.00251594]
[1772694037349,0.02766938,90.928,90.88,1.34583226]
[1772694038444,0.02766938,90.928,90.882,1.34583226]
[1772694038842,0.02868422,90.948,90.882,1.34583226]
[1772694039032,0.02968579,90.939,90.882,1.34583226]
[1772694039242,0.02968579,90.939,90.882,1.6301554]
[1772694039445,0.02968579,90.948,90.886,1.34583226]
[1772694040858,0.02968579,90.948,90.891,1.34583226]
[1772694041158,0.02968579,90.948,90.891,1.6301554]
[1772694041358,0.03165322,90.958,90.891,1.6301554]